bitfinex-derivatives/quotes_ETHF0:USTF0_20251024
["timestamp","ask_amount","ask_price","bid_price","bid_amount"]
[1761296529031,0.74942937,3953.3,3953.2,1.23293]
[1761296529232,0.00222937,3953.3,3953.2,1.23293]
[1761296529525,0.812,3953.5,3953.4,1.23291]
[1761296529723,0.812,3953.5,3953.4,11.56217038]
[1761296530125,0.5299,3954.4,3954.3,0.5596]
[1761296530428,0.5299,3954.4,3954.3,0.7777]
[1761296530728,0.74945111,3954.4,3954.3,0.8847]
[1761296531321,0.74945111,3954.4,3954.3,1.2328]
[1761296532419,0.00225111,3954.4,3954.3,1.2328]
[1761296532628,0.00225111,3954.4,3954.3,1.90847422]
[1761296532928,0.00225111,3954.4,3954.3,1.2328]
[1761296533130,0.00225111,3954.4,3954.3,1.90797653]
[1761296535324,0.00225111,3954.4,3954.3,1.2328]
[1761296536121,0.3172,3955.2,3955.1,1.23271]
[1761296536329,0.349,3955.5,3955.4,1.23268]
[1761296536537,0.5663,3955.5,3955.4,1.23268]
[1761296536728,0.5663,3955.5,3955.4,0.88458]
[1761296537037,0.88579196,3955.5,3955.4,0.88750734]
[1761296540134,0.88579196,3955.5,3955.4,0.67600734]
[1761296541039,0.53219196,3955.5,3955.4,10.20760734]
[1761296541727,0.74949196,3955.5,3955.4,9.42990734]
[1761296541933,0.88579196,3955.5,3955.4,9.64800734]
[1761296542444,1.34076196,3955.5,3955.4,8.97492734]
[1761296542739,1.34076196,3955.5,3954.9,1.13757]
[1761296542740,1.20223,3954.9,3954.8,3.2078]
[1761296543041,1.20223,3954.9,3954.8,3.66285]
[1761296543632,1.20223,3954.9,3954.8,3.2078]
[1761296543828,1.20223,3954.9,3954.8,3.21098265]
[1761296544535,1.20223,3954.9,3954.8,3.66603265]
[1761296545233,0.7472,3954.9,3954.8,3.66603265]
[1761296545431,0.7472,3954.9,3954.8,3.88413265]
[1761296545943,0.3172,3954.9,3954.8,4.44373265]
[1761296546135,1.20218,3955.4,3955.3,0.67308]
[1761296546335,0.96998552,3955.4,3955.3,0.67308]
[1761296546936,0.7472,3955.4,3955.3,0.67308]
[1761296547140,0.9700294,3955.4,3955.3,0.67308]
[1761296547639,0.7472,3955.4,3955.3,0.67308]
[1761296548233,1.42507165,3955.4,3955.3,0.45498]
[1761296548842,0.97009165,3955.4,3955.3,0.45498]
[1761296549033,1.42507165,3955.4,3955.3,0.45498]
[1761296549940,1.42517735,3955.4,3955.3,0.45498]
[1761296551743,1.42517735,3955.4,3954.9,8.971]
[1761296551744,0.9237,3955.0,3954.9,8.971]
[1761296552134,0.9237,3955.0,3954.9,9.2022]
[1761296552336,0.9237,3955.0,3954.9,9.88123]
[1761296553938,0.9237,3955.0,3954.9,9.42603]
[1761296554738,0.9237,3955.0,3954.9,9.88123]
[1761296557039,0.9237,3955.0,3954.9,9.65723]
[1761296557237,0.9237,3955.0,3954.9,9.42603]
[1761296557436,1.24603,3954.9,3954.8,3.21098265]
[1761296557636,0.8968,3954.3,3954.1,0.67423704]
[1761296557837,0.791,3953.8,3953.7,12.408]
[1761296558443,0.3493,3953.8,3953.7,12.9579]
[1761296558639,0.5704,3953.8,3953.7,12.9579]
[1761296558841,0.791,3953.8,3953.7,12.41119074]
[1761296559145,0.791,3953.8,3953.7,12.17999074]
[1761296560041,0.791,3953.8,3953.7,0.00319074]
[1761296561347,1.01617772,3953.8,3953.7,0.00319074]
[1761296562846,0.791,3953.8,3953.7,0.00319074]
[1761296563550,0.9237,3953.0,3952.9,3.2078]
[1761296564450,0.9237,3953.0,3952.9,3.20998449]
[1761296564841,0.9237,3953.0,3952.9,3.44118449]
[1761296566056,0.5744,3953.5,3953.4,1.23631]
[1761296566351,0.9237,3953.5,3953.4,1.23631]
[1761296566552,0.9237,3953.5,3953.4,0.91041]
[1761296567047,3.3405,3954.0,3952.9,4.34815449]
[1761296567048,0.791,3953.9,3953.8,0.4552]
[1761296568557,0.791,3953.9,3953.8,0.91036]
[1761296569347,0.4417,3954.3,3954.2,1.23621]
[1761296569752,0.4417,3954.3,3954.2,0.91031]
[1761296570053,0.791,3954.3,3954.2,0.91031]
[1761296570255,0.9237,3954.0,3953.9,3.89415]
[1761296571156,0.9237,3954.0,3953.9,4.11815]
[1761296573953,0.9237,3954.0,3953.9,3.439]
[1761296574250,0.9237,3954.0,3953.9,3.89415]
[1761296574650,0.9237,3954.0,3953.9,3.2078]
[1761296574851,0.5744,3954.0,3953.8,0.45516]
[1761296575054,0.791,3953.9,3953.8,0.45516]
[1761296575248,0.791,3953.7,3953.5,3.2078]
[1761296575453,0.791,3953.6,3953.5,3.8942]
[1761296576251,0.791,3953.6,3953.5,3.2078]
[1761296576656,0.791,3953.6,3953.5,3.663]
[1761296577572,0.791,3953.6,3953.5,3.2078]
[1761296577750,0.791,3953.6,3953.1,0.3259]
[1761296577955,0.9237,3953.5,3953.4,0.45521]
[1761296578759,0.791,3953.3,3953.2,0.68642]
[1761296582164,0.4417,3953.3,3953.1,3.2078]
[1761296582461,0.3216,3953.4,3953.1,3.643]
[1761296582664,0.5474,3953.7,3953.6,0.7831]
[1761296582857,0.5474,3953.7,3953.6,1.23828]
[1761296585368,3.6611,3954.4,3954.3,0.7831]
[1761296585561,0.4533,3954.4,3954.3,0.7831]
[1761296585760,0.7749,3954.4,3954.3,0.7831]
[1761296586561,0.7749,3954.4,3954.3,1.2382]
[1761296586757,0.3216,3954.3,3953.9,0.45515]
[1761296587070,0.9073,3954.0,3953.9,0.66595]
[1761296588266,0.9073,3954.0,3953.9,0.89035]
[1761296588964,0.5474,3954.0,3953.9,1.23825]
[1761296590068,0.1327,3954.5,3954.2,1.23821]
[1761296590069,0.5474,3954.3,3954.2,1.23821]
[1761296590368,0.77313618,3954.3,3954.2,1.23821]
[1761296591079,1.00063618,3954.3,3954.2,1.23821]
[1761296591371,1.00063618,3954.3,3954.2,0.89031]
[1761296594175,1.00063618,3954.3,3954.2,0.66591]
[1761296594873,1.00063618,3954.3,3954.2,1.23821]
[1761296595974,1.00063618,3954.3,3954.2,0.89031]
[1761296596363,0.1324,3954.0,3953.9,0.88503704]
[1761296596566,0.7749,3953.9,3953.8,4.33719704]
[1761296596768,1.00063618,3953.9,3953.8,3.66296]
[1761296597172,1.00063618,3953.9,3953.8,3.87376]
[1761296598371,1.00063618,3953.9,3953.8,3.4186]
[1761296598673,1.00063618,3953.9,3953.8,3.2078]
[1761296599176,1.00063618,3953.9,3953.8,4.09816]
[1761296600474,1.00063618,3953.9,3953.8,4.44606]
[1761296605677,0.22573618,3953.9,3953.8,4.44606]
[1761296605881,1.36348552,3954.4,3954.2,0.45511]
[1761296606084,0.4533,3954.4,3954.3,0.7831]
[1761296606278,0.67916642,3954.4,3954.3,1.2382]
[1761296606473,1.00076642,3954.4,3954.3,1.2382]
[1761296608082,0.77326642,3954.4,3954.3,1.2382]
[1761296608374,0.54746642,3954.4,3954.3,1.2382]
[1761296608571,0.76116642,3954.4,3954.3,1.2382]
[1761296609579,0.22586642,3954.4,3954.3,1.2382]
[1761296609877,3.5438,3954.7,3954.6,1.22147]
[1761296610280,0.336,3954.7,3954.6,1.22147]
[1761296610676,0.3666,3955.0,3954.9,1.22143]
[1761296610882,0.59234499,3955.0,3954.9,1.22143]
[1761296611375,1.15584499,3955.0,3954.9,1.22143]
[1761296612176,0.9301,3955.0,3954.9,1.22143]
[1761296612678,1.15575428,3955.0,3954.9,1.22143]
[1761296614384,0.9301,3955.0,3954.9,1.22143]
[1761296615180,0.5699,3955.2,3955.1,1.2214]
[1761296615371,0.79547082,3955.2,3955.1,1.2214]
[1761296616184,1.02297082,3955.2,3955.1,0.8907]
[1761296616386,1.02297082,3955.2,3955.1,1.2214]
[1761296617588,0.7974,3955.2,3955.1,1.2214]
[1761296617784,1.02036603,3955.2,3955.1,1.2214]
[1761296618087,0.7974,3955.2,3955.1,1.2214]
[1761296622986,0.5699,3955.2,3955.1,1.2214]
[1761296623190,0.336,3955.2,3955.1,1.2214]
[1761296623591,0.5699,3955.2,3955.1,1.2214]
[1761296623982,0.7974,3955.2,3955.1,1.2214]
[1761296624386,0.7974,3955.2,3955.1,0.455]
[1761296624890,0.1333,3955.0,3954.7,0.3307]
[1761296625085,0.5947,3954.5,3954.4,0.45509]
[1761296625286,0.9307,3954.5,3954.4,0.45509]
[1761296625589,0.9307,3954.5,3954.4,0.67039]
[1761296625896,0.9307,3954.5,3954.4,1.22149]
[1761296626590,0.5699,3954.5,3954.4,1.22149]
[1761296627389,0.7974,3954.5,3954.4,1.22149]
[1761296627597,0.9307,3954.5,3954.4,1.22149]
[1761296627893,0.9307,3954.5,3954.4,0.89079]
[1761296628092,0.9307,3954.5,3954.4,0.67039]
[1761296628797,0.9307,3954.5,3954.4,0.89079]
[1761296630995,0.9307,3954.5,3954.4,0.4357]
[1761296631298,0.9307,3954.5,3954.4,0.2153]
[1761296631500,0.9307,3954.5,3954.4,0.67039]
[1761296636205,0.9307,3954.5,3954.4,0.2153]
[1761296636401,0.9307,3954.5,3954.4,0.67039]
[1761296636598,1.15399301,3954.5,3954.4,0.45509]
[1761296636803,0.7974,3954.3,3954.2,0.6704]
[1761296637003,1.02071997,3954.3,3954.2,0.6704]
[1761296637196,1.02071997,3954.3,3954.2,0.2153]
[1761296637807,1.02071997,3954.3,3954.2,0.67042]
[1761296639810,1.02071997,3954.3,3954.2,0.45512]
[1761296640308,0.7778,3954.1,3954.0,0.68154]
[1761296641107,0.7778,3954.1,3954.0,0.90754]
[1761296641310,0.7778,3954.1,3954.0,1.23794]
[1761296641905,0.3476,3954.5,3954.4,0.7828]
[1761296642112,1.13807698,3954.5,3954.4,0.90749]
[1761296642809,0.7778,3954.4,3954.3,0.4551]
[1761296642999,1.00107698,3954.4,3954.3,0.6815]
[1761296644517,1.00107698,3954.4,3954.3,1.2379]
[1761296645217,0.78197698,3954.4,3954.3,1.2379]
[1761296647017,1.00107698,3954.4,3954.3,0.6815]
[1761296648215,1.00107698,3954.4,3954.3,1.2379]
[1761296648814,0.57087698,3954.4,3954.3,1.2379]
[1761296649112,0.3476,3955.1,3955.0,0.45502]
[1761296649311,0.3476,3955.4,3955.3,0.7828]
[1761296649613,0.57453632,3955.4,3955.3,0.7828]
[1761296650316,0.22693632,3955.4,3955.3,1.23779]
[1761296650810,1.00473632,3955.4,3955.3,1.23779]
[1761296651012,1.00473632,3955.4,3955.3,0.7828]
[1761296651211,0.7778,3955.1,3955.0,1.23782]
[1761296651515,1.00473632,3955.1,3955.0,1.23782]
[1761296652808,0.7778,3955.1,3955.0,1.23782]
[1761296653009,0.7778,3955.1,3955.0,4.44562]
[1761296653904,0.7778,3955.1,3955.0,0.90742]
[1761296654111,0.7778,3955.1,3955.0,0.68142]
[1761296654311,0.7778,3955.1,3955.0,1.23782]
[1761296655416,0.7778,3955.1,3954.8,0.45504]
[1761296655714,0.7778,3954.7,3954.6,0.68146]
[1761296655909,0.7778,3954.7,3954.6,0.90746]
[1761296656116,0.7778,3954.7,3954.6,1.23786]
[1761296656820,0.7778,3954.7,3954.6,0.90746]
[1761296660617,0.7778,3954.7,3954.6,1.23786]
[1761296661511,0.7778,3954.7,3954.6,0.90746]
[1761296663910,0.7778,3954.7,3954.6,1.23786]
[1761296671522,0.7778,3954.7,3954.6,0.90746]
[1761296673730,0.7778,3954.7,3954.6,0.66736]
[1761296674127,1.0048291,3954.7,3954.6,0.66736]
[1761296674330,1.0048291,3954.7,3954.6,1.01586]
[1761296674726,1.0048291,3954.7,3954.6,0.66736]
[1761296676331,0.7966,3954.6,3954.4,0.67691401]
[1761296676629,0.4565,3954.2,3954.1,1.13204401]
[1761296676836,0.7966,3954.2,3954.1,1.34434401]
[1761296677136,1.02372559,3954.2,3954.1,0.66743]
[1761296677638,0.7966,3954.2,3954.1,0.66743]
[1761296678027,1.01708298,3954.2,3954.1,0.66743]
[1761296679136,0.7966,3954.2,3954.1,0.66743]
[1761296679337,0.3401,3954.1,3954.0,0.45513]
[1761296679541,0.7966,3954.1,3954.0,0.45513]
[1761296679839,0.7966,3953.9,3953.8,1.91326401]
[1761296680031,0.7966,3953.9,3953.8,0.88785]
[1761296680739,0.7966,3953.9,3953.8,0.4327]
[1761296680939,0.7966,3953.9,3953.8,0.88786]
[1761296681148,0.7966,3953.9,3953.8,0.2123]
[1761296682041,0.7966,3953.8,3953.7,3.2078]
[1761296682241,0.7966,3953.6,3953.5,0.2123]
[1761296684048,0.4696,3953.5,3953.3,1.91332401]
[1761296684336,0.572,3953.4,3953.3,1.23641]
[1761296684932,0.7966,3953.4,3953.3,1.23641]
[1761296685445,0.7966,3953.4,3953.3,0.7812]
[1761296685746,0.7966,3953.4,3953.3,0.4327]
[1761296687754,0.7966,3953.4,3953.3,0.88792]
[1761296688049,0.7966,3953.4,3953.3,1.23642]
[1761296689864,0.572,3953.4,3953.3,1.23642]
[1761296690065,0.572,3953.7,3953.6,0.45518]
[1761296690261,0.572,3953.7,3953.6,0.88788]
[1761296690760,0.572,3953.7,3953.6,1.23638]
[1761296691265,0.3401,3953.7,3953.6,1.23638]
[1761296691463,3.2078,3953.8,3953.7,1.23637]
[1761296691671,3.5479,3953.8,3953.7,1.23637]
[1761296691965,4.0044,3953.8,3953.7,1.23637]
[1761296692164,4.0044,3953.8,3953.7,0.88787]
[1761296693466,4.0044,3953.8,3953.7,1.23637]
[1761296694066,3.7798,3953.8,3953.7,1.23637]
[1761296694365,3.5479,3953.8,3953.7,1.23637]
[1761296697467,9.58940878,3954.9,3954.1,0.45513]
[1761296697468,3.5479,3954.2,3954.1,0.45513]
[1761296697672,3.2078,3954.2,3954.1,1.23633]
[1761296697969,0.572,3954.4,3954.3,1.2363]
[1761296698659,0.7966,3954.4,3954.3,1.2363]
[1761296702165,0.572,3954.4,3954.3,1.2363]
[1761296703166,3.2078,3954.6,3954.5,0.45508]
[1761296703467,3.2078,3954.6,3954.5,1.37648]
[1761296703672,3.2078,3955.4,3955.3,1.24929]
[1761296703876,0.00229196,3955.5,3955.4,1.24928]
[1761296704170,3.741,3956.4,3956.3,1.24917]
[1761296704965,3.52645429,3956.4,3956.3,1.25177659]
[1761296705167,3.20995429,3956.4,3956.3,1.25177659]
[1761296706371,3.97615429,3956.4,3956.3,0.22820659]
[1761296706566,3.97615429,3956.4,3956.3,0.00260659]
[1761296707679,3.97615429,3956.4,3956.3,0.22820659]
[1761296708380,3.97615429,3956.4,3956.3,0.45120659]
[1761296708975,3.97615429,3956.4,3956.3,0.00260659]
[1761296712785,3.97615429,3956.4,3956.3,0.45120659]
[1761296716892,3.97615429,3956.4,3956.3,0.00260659]
[1761296717092,3.97615429,3956.4,3956.3,0.90607659]
[1761296717484,3.97615429,3956.4,3956.3,1.25177659]
[1761296717879,3.20995429,3956.4,3956.3,1.25177659]
[1761296718093,3.52645429,3956.4,3956.3,1.25177659]
[1761296718391,3.74315429,3956.4,3956.3,1.25177659]
[1761296718986,3.20995429,3956.4,3956.3,6.25177659]
[1761296719185,0.1281,3957.5,3956.8,0.2256]
[1761296719186,0.7662,3956.9,3956.8,0.2256]
[1761296719690,0.7662,3956.9,3956.8,0.68042]
[1761296720193,0.76859019,3956.9,3956.8,0.68042]
[1761296720794,0.76859019,3956.9,3956.8,1.24912]
[1761296721889,0.76859019,3956.9,3956.8,0.90342]
[1761296722090,0.76859019,3956.9,3956.8,0.4486]
[1761296722290,0.76859019,3956.9,3956.8,0.2256]
[1761296722591,0.76859019,3956.9,3956.8,0.68042]
[1761296722791,0.53559019,3956.9,3956.8,1.24912]
[1761296723890,0.00239019,3956.9,3956.8,1.24912]
[1761296724102,0.00239019,3956.9,3956.8,6.24912]
[1761296724291,0.00239019,3956.9,3956.8,6.44919624]
[1761296724691,3.741,3957.7,3957.6,1.24902]
[1761296725688,3.74368075,3957.7,3957.6,1.24902]
[1761296725889,3.21048075,3957.7,3957.6,1.24902]
[1761296726099,0.00268075,3957.7,3957.6,1.24902]
[1761296726288,0.53588075,3957.7,3957.6,1.24902]
[1761296726792,0.00268075,3957.7,3957.6,1.24902]
[1761296728896,0.56358075,3957.7,3957.6,1.24902]
[1761296729598,0.00268075,3957.7,3957.6,1.24902]
[1761296731090,0.022,3957.8,3957.7,1.01761]
[1761296731297,0.022,3957.8,3957.7,10.18301]
[1761296731699,0.022,3957.8,3957.7,15.18301]
[1761296731893,0.3178,3958.7,3958.4,1.23793]
[1761296732204,3.5256,3959.0,3958.9,1.23787]
[1761296732389,3.7544,3959.0,3958.9,1.23787]
[1761296732594,3.75665325,3959.0,3958.9,1.23787]
[1761296733400,0.00225325,3959.0,3958.9,1.23787]
[1761296733594,0.32005325,3959.0,3958.9,1.23787]
[1761296733899,0.00225325,3959.0,3958.9,1.23787]
[1761296734402,0.00225325,3959.0,3958.9,4.44567]
[1761296736101,0.3178,3959.5,3959.4,0.45452]
[1761296736299,0.3178,3959.5,3959.4,1.23782]
[1761296736604,0.5466,3959.5,3959.4,1.23782]
[1761296737299,0.5466,3959.5,3959.4,1.23962512]
[1761296737300,0.54973782,3959.5,3959.4,1.23962512]
[1761296737607,0.00313782,3959.5,3959.4,1.23962512]
[1761296738006,0.89643782,3959.5,3959.4,0.90552512]
[1761296738804,0.89643782,3959.5,3959.4,1.23962512]
[1761296740192,0.76663782,3959.5,3959.4,1.23962512]
[1761296741005,0.76663782,3959.5,3959.4,0.78510512]
[1761296741006,0.89643782,3959.5,3959.4,0.78510512]
[1761296741307,0.89643782,3959.5,3959.4,1.23962512]
[1761296743809,0.89643782,3959.5,3959.4,0.45100512]
[1761296744012,0.89643782,3959.5,3959.4,0.23060512]
[1761296744918,0.89643782,3959.5,3959.4,0.68512512]
[1761296745211,0.89643782,3959.5,3959.4,0.00180512]
[1761296747599,5.89643782,3959.5,3958.8,3.2078]
[1761296747806,0.7635,3958.9,3958.8,3.2078]
[1761296748108,0.7635,3958.9,3958.8,4.11159]
[1761296748312,0.7635,3958.9,3958.8,3.4366]
[1761296748704,0.7635,3958.9,3958.8,3.89298113]
[1761296749715,0.7635,3958.9,3958.8,3.20959113]
[1761296749907,0.7635,3958.9,3958.8,0.00179113]
[1761296752420,3.9713,3958.9,3958.8,0.00179113]
[1761296753905,0.8933,3958.0,3957.9,3.2078]
[1761296754105,0.8933,3958.0,3957.9,3.66249]
[1761296754307,0.8933,3958.0,3957.9,3.89129]
[1761296754919,0.8933,3958.0,3957.9,4.44852052]
[1761296755107,0.8933,3958.0,3957.9,4.11442052]
[1761296755616,0.8933,3958.0,3957.9,3.89402052]
[1761296757911,0.8933,3958.0,3957.9,0.23153052]
[1761296758116,0.8933,3958.0,3957.9,0.00273052]
[1761296759324,0.7611,3957.1,3957.0,0.68269]
[1761296759816,0.7611,3957.1,3957.0,1.23879]
[1761296760420,0.7611,3957.1,3957.0,1.24060627]
[1761296761116,0.7611,3957.1,3957.0,0.22971627]
[1761296761316,3.9689,3957.1,3957.0,0.00181627]
[1761296766015,3.3457,3957.5,3957.0,1.24060627]
[1761296766214,0.3252,3957.7,3957.6,0.45472]
[1761296766423,0.3252,3957.7,3957.6,1.23872]
[1761296767024,0.7611,3957.7,3957.6,0.2279]
[1761296767212,0.223,3957.4,3957.3,1.02796]
[1761296767421,0.5482,3957.4,3957.3,1.23876]
[1761296767825,0.7611,3957.4,3957.3,0.2279]
[1761296768028,0.7611,3957.1,3957.0,4.10310627]
[1761296768230,0.7611,3957.1,3957.0,4.44840627]
[1761296769124,0.7611,3957.1,3957.0,1.24060627]
[1761296770430,0.3252,3957.1,3957.0,1.24060627]
[1761296770630,0.3252,3957.4,3957.2,0.3453]
[1761296770823,0.5482,3957.4,3957.2,0.3453]
[1761296771029,0.5482,3957.3,3957.2,1.23877]
[1761296772318,0.7611,3957.3,3957.2,1.23877]
[1761296772523,0.7611,3957.3,3957.2,0.2279]
[1761296772724,0.7611,3957.3,3957.2,0.68267]
[1761296773025,0.7611,3957.3,3957.2,1.23877]
[1761296773331,0.7611,3957.3,3957.2,0.784]
[1761296774430,0.7611,3957.3,3957.2,1.23877]
[1761296775033,0.6861,3957.5,3957.3,0.45475]
[1761296775234,0.5482,3957.5,3957.4,0.784]
[1761296775442,0.5482,3957.5,3957.4,1.23875]
[1761296775639,3.2078,3957.9,3957.7,0.784]
[1761296775640,0.5482,3957.8,3957.7,0.784]
[1761296775938,0.5482,3957.8,3957.7,1.23871]
[1761296776140,0.5482,3957.8,3957.7,0.784]
[1761296776536,0.7611,3957.8,3957.7,1.23871]
[1761296776737,0.5482,3957.8,3957.7,1.23871]
[1761296776934,0.5482,3957.8,3957.4,1.13686]
[1761296776935,3.2078,3957.9,3957.8,1.2387]
[1761296779243,3.2078,3958.4,3958.3,1.23864]
[1761296780043,3.756,3958.4,3958.3,1.23864]
[1761296780437,3.533,3958.4,3958.3,1.23864]
[1761296780638,3.2078,3958.4,3958.3,1.23864]
[1761296782341,3.533,3958.4,3958.3,1.23864]
[1761296783252,3.9689,3958.4,3958.3,0.89334]
[1761296783545,3.9689,3958.4,3958.3,1.23864]
[1761296784348,0.7611,3958.4,3958.3,0.89334]
[1761296784643,0.7611,3958.4,3958.3,1.23864]
[1761296785047,0.5482,3958.4,3958.3,1.23864]
[1761296785249,3.6437,3958.8,3958.7,0.8933]
[1761296785449,3.6437,3958.8,3958.7,1.2386]
[1761296785750,3.9689,3958.8,3958.7,1.2386]
[1761296787542,3.9689,3958.8,3958.7,0.8933]
[1761296789351,3.9689,3958.8,3958.7,1.2371]
[1761296791752,0.7611,3958.8,3958.7,1.2371]
[1761296791947,0.36473782,3959.5,3959.1,0.45454]
[1761296792152,0.36473782,3959.5,3959.4,0.2182]
[1761296792354,0.59103782,3959.5,3959.4,1.23052]
[1761296792551,0.93403782,3959.5,3959.4,0.88672]
[1761296792956,0.79613782,3959.5,3959.4,1.23052]
[1761296793957,0.92443782,3959.5,3959.4,1.23052]
[1761296795154,3.2078,3960.0,3959.9,1.23046]
[1761296795959,0.5667,3960.3,3960.2,1.23042]
[1761296796155,0.00198584,3960.3,3960.2,1.23352254]
[1761296796356,0.00198584,3960.3,3960.2,6.23352254]
[1761296796563,0.00198584,3960.3,3960.2,1.23352254]
[1761296798154,0.5667,3960.7,3960.6,1.23038]
[1761296799257,0.56852806,3960.7,3960.6,1.23038]
[1761296799657,0.00182806,3960.7,3960.6,1.23038]
[1761296800860,0.34482806,3960.7,3960.6,1.23038]
[1761296802353,0.56852806,3960.7,3960.6,1.23038]
[1761296802549,0.79482806,3960.7,3960.6,0.45438]
[1761296803861,0.9213,3960.5,3960.4,0.6726]
[1761296804649,0.5783,3960.5,3960.2,0.00310254]
[1761296804853,0.793,3960.3,3960.2,0.45752254]
[1761296806261,0.793,3960.3,3960.2,0.00310254]
[1761296808966,0.793,3959.6,3959.5,3.6623]
[1761296809168,0.793,3959.6,3959.5,3.8805]
[1761296809869,0.793,3959.6,3959.5,3.88260822]
[1761296810469,0.2237,3959.9,3959.8,0.2182]
[1761296810771,0.45,3959.9,3959.7,0.45448]
[1761296811267,0.793,3959.8,3959.7,0.67268]
[1761296812870,0.343,3959.8,3959.7,1.23048]
[1761296813058,3.2078,3960.4,3959.7,0.776]
[1761296813364,0.343,3960.0,3959.9,1.23046]
[1761296813570,0.5667,3960.0,3959.9,1.23046]
[1761296814271,3.6578,3960.4,3960.3,0.45441]
[1761296814475,0.22552806,3960.7,3960.6,1.23038]
[1761296814973,0.56852806,3960.7,3960.6,1.23038]
[1761296816178,0.79482806,3960.7,3960.6,1.23038]
[1761296818267,8.937,3962.1,3960.6,1.23038]
[1761296818268,3.2078,3962.4,3961.9,0.3438]
[1761296818463,0.20123185,3963.3,3961.5,0.1303]
[1761296818464,0.91018552,3963.3,3962.5,0.1303]
[1761296818658,1.48970878,3963.5,3962.7,0.776]
[1761296818659,0.472,3962.8,3962.7,0.776]
[1761296818867,0.472,3962.8,3962.3,0.562]
[1761296819060,0.4409,3962.2,3962.1,3.2078]
[1761296819267,0.4409,3962.2,3962.1,3.20986755]
[1761296819575,0.4409,3962.2,3962.1,3.43446755]
[1761296819876,0.4409,3962.2,3962.1,0.22666755]
[1761296820071,0.4409,3962.2,3962.1,0.00206755]
[1761296820269,0.791,3962.2,3962.1,0.00206755]
[1761296821167,0.7788,3962.2,3962.1,0.22666755]
[1761296821371,0.7788,3962.2,3962.1,0.00206755]
[1761296821761,3.2078,3962.4,3962.1,0.43716755]
[1761296822275,0.7788,3962.3,3962.2,0.7806]
[1761296822468,0.4287,3962.7,3962.6,0.2246]
[1761296822964,0.7788,3962.7,3962.6,0.2246]
[1761296823161,0.3501,3962.6,3962.3,0.7806]
[1761296823365,0.7788,3962.4,3962.1,0.00206755]
[1761296823565,0.4287,3962.2,3962.1,0.22666755]
[1761296823766,0.7788,3962.2,3962.1,0.00206755]
[1761296824072,0.7788,3961.3,3961.2,0.6789]
[1761296824378,0.7788,3961.3,3961.2,1.2349]
[1761296824970,0.7788,3961.3,3961.2,1.23816029]
[1761296826576,0.7788,3961.3,3961.2,0.78386029]
[1761296826779,0.7788,3961.3,3961.2,0.00326029]
[1761296828985,0.7788,3961.3,3961.2,0.22786029]
[1761296829176,0.3501,3961.3,3961.2,0.78386029]
[1761296829370,0.7788,3961.7,3961.6,0.2246]
[1761296829576,0.7788,3961.7,3961.6,1.23487]
[1761296829776,3.4224,3961.8,3961.7,0.7806]
[1761296830182,0.5647,3961.8,3961.7,0.7806]
[1761296830482,3.7725,3962.2,3962.1,0.7806]
[1761296830682,3.9866,3962.2,3962.1,0.7806]
[1761296831479,3.9866,3962.2,3962.1,0.4351]
[1761296831678,3.9866,3962.2,3962.1,0.2246]
[1761296832290,0.7788,3961.9,3961.8,0.45424]
[1761296833088,0.7788,3961.9,3961.8,0.67884]
[1761296835186,0.2146,3961.3,3961.2,1.23817029]
[1761296835383,0.7788,3961.3,3961.2,0.45757029]
[1761296835583,0.7788,3961.3,3961.2,0.00326029]
[1761296836284,0.7788,3961.3,3961.2,0.45757029]
[1761296836488,0.7788,3961.3,3961.2,0.00326029]
[1761296837692,0.7788,3961.3,3961.2,0.22786029]
[1761296837991,0.7788,3961.3,3961.2,0.00326029]
[1761296843694,0.7788,3961.3,3961.2,0.22786029]
[1761296844286,0.7788,3961.3,3961.2,0.00326029]
[1761296846800,0.7788,3961.3,3961.2,0.22786029]
[1761296846989,0.3501,3961.3,3961.2,1.23817029]
[1761296847193,0.5647,3961.3,3961.2,1.23817029]
[1761296848002,0.7788,3961.3,3961.2,1.23817029]
[1761296850401,0.2146,3961.3,3961.2,1.23817029]
[1761296850694,0.7558,3961.4,3961.3,0.6773]
[1761296850898,0.3318,3961.3,3961.2,0.00326029]
[1761296851206,0.7558,3961.3,3961.2,0.00326029]
[1761296851502,0.7558,3961.3,3961.2,1.21227029]
[1761296852100,0.7558,3961.3,3961.2,0.89467029]
[1761296852501,0.7558,3961.3,3961.2,0.44036029]
[1761296852702,0.7558,3961.3,3961.2,0.22626029]
[1761296852901,0.91018552,3961.8,3961.2,0.75796029]
[1761296853094,0.3318,3962.1,3962.0,1.20892]
[1761296853401,0.2113,3962.2,3962.1,0.7547]
[1761296853594,0.7558,3962.2,3962.1,0.7547]
[1761296853794,0.7558,3962.2,3962.1,0.4371]
[1761296854090,0.7558,3962.2,3962.1,1.20891]
[1761296854600,0.7558,3962.2,3962.1,0.4371]
[1761296854797,3.2078,3962.4,3961.8,0.3176]
[1761296854798,3.2078,3962.4,3961.8,0.7547]
[1761296854991,0.5431,3962.2,3962.1,1.20891]
[1761296855595,0.2113,3962.5,3962.2,0.3176]
[1761296855800,0.5431,3962.7,3962.6,0.7547]
[1761296855997,0.7558,3962.7,3962.6,0.7547]
[1761296856197,0.7558,3962.7,3962.6,0.223]
[1761296856705,0.7558,3962.4,3962.3,0.4371]
[1761296856906,0.7558,3962.4,3962.3,0.7547]
[1761296857092,0.5431,3962.7,3962.6,0.89125]
[1761296857296,0.5431,3962.7,3962.6,1.20885]
[1761296858609,3.23264322,3962.8,3962.7,0.7547]
[1761296858911,0.56794322,3962.8,3962.7,0.7547]
[1761296859205,0.23614322,3962.8,3962.7,0.7547]
[1761296859509,0.02484322,3962.8,3962.7,0.7547]
[1761296859712,0.23614322,3962.8,3962.7,0.7547]
[1761296860005,0.56794322,3962.8,3962.7,0.7547]